bitfinex/quotes_SOLUSD_20240711
["timestamp","ask_amount","ask_price","bid_price","bid_amount"]
[1720704682156,17.4305,143.43,143.35,6.9758]
[1720704682157,1.38685088,143.42,143.35,6.9758]
[1720704682362,1.38685088,143.42,143.33,17.4415]
[1720704682561,6.9731,143.41,143.33,24.418]
[1720704683062,29.71908802,143.44,143.33,24.418]
[1720704683274,6.9725,143.42,143.35,17.4392]
[1720704683486,6.9732,143.41,143.32,15.8518]
[1720704683655,6.9732,143.41,143.33,45.34]
[1720704683856,6.9732,143.41,143.33,7.1468]
[1720704684186,8.35885088,143.43,143.33,17.6114]
[1720704684380,4.10500816,143.44,143.33,100.17]
[1720704684673,15.6107,143.47,143.37,17.4367]
[1720704684674,19.79571095,143.47,143.37,17.4367]
[1720704684878,16.99755088,143.47,143.39,6.9736]
[1720704685089,16.99755088,143.47,143.4,38.36735303]
[1720704685269,1.38685088,143.48,143.4,38.36715303]
[1720704685453,8.35645088,143.48,143.4,38.36715303]
[1720704685654,1.38685088,143.48,143.4,31.39405303]
[1720704685964,17.4247,143.48,143.4,30.0]
[1720704686172,6.9711,143.45,143.4,30.0]
[1720704686480,6.9695,143.49,143.41,0.17]
[1720704686682,28.89738802,143.51,143.42,6.9724]
[1720704686894,13.6767389,143.51,143.44,6.9714]
[1720704687182,8.35455088,143.52,143.44,6.9714]
[1720704687394,15.7316,143.55,143.43,7.3119]
[1720704687395,6.9681,143.51,143.43,7.3119]
[1720704687681,1.38685088,143.5,143.44,0.83090253]
[1720704687889,6.9691,143.49,143.44,0.83090253]
[1720704688259,6.9691,143.49,143.44,30.83090253]
[1720704688460,6.9687,143.5,143.44,30.83090253]
[1720704688665,8.35455088,143.52,143.44,30.83090253]
[1720704688957,8.35365088,143.54,143.46,6.4885]
[1720704689171,8.35365088,143.54,143.47,0.88681135]
[1720704689480,6.9663,143.55,143.47,37.85671135]
[1720704689790,6.9668,143.54,143.47,30.88681135]
[1720704690079,6.9672,143.53,143.47,30.0]
[1720704690653,1.38685088,143.56,143.47,30.0]
[1720704690855,6.9662,143.55,143.47,36.97]
[1720704691279,1.38685088,143.56,143.49,17.4226]
[1720704691584,1.38685088,143.56,143.49,30.0]
[1720704692084,6.9658,143.56,143.49,30.0]
[1720704692268,6.9662,143.55,143.49,30.0]
[1720704692467,6.9653,143.57,143.49,36.9691]
[1720704692671,6.6561,143.6,143.49,30.0]
[1720704692983,6.6561,143.6,143.5,0.34]
[1720704693282,9.386343,143.6,143.5,30.17]
[1720704693473,6.9653,143.57,143.5,30.0]
[1720704693855,6.9648,143.58,143.5,36.9686]
[1720704694160,6.9644,143.59,143.51,6.9681]
[1720704694379,8.35165088,143.58,143.51,30.0]
[1720704694582,6.9654,143.57,143.51,30.0]
[1720704694908,17.4101,143.6,143.51,30.0]
[1720704695058,1.38685088,143.59,143.51,30.0]
[1720704695379,1.38685088,143.63,143.51,30.0]
[1720704695576,6.9656,143.57,143.51,30.0]
[1720704695776,1.38685088,143.61,143.51,30.0]
[1720704695954,1.38685088,143.6,143.51,30.0]
[1720704696162,8.35055088,143.6,143.53,6.6299]
[1720704696463,8.35055088,143.6,143.53,36.6299]
[1720704696671,8.35035088,143.61,143.53,43.5968]
[1720704696877,6.9635,143.61,143.53,43.5968]
[1720704697067,6.9635,143.61,143.54,0.17]
[1720704697275,8.34965088,143.62,143.54,30.17]
[1720704697465,6.9628,143.62,143.54,30.17]
[1720704698287,6.9628,143.62,143.54,37.1365]
[1720704698472,8.35025088,143.61,143.54,30.0]
[1720704698787,8.34955088,143.63,143.55,24.3811]
[1720704699086,1.38685088,143.64,143.57,17.4123]
[1720704699294,1.38685088,143.64,143.55,30.0]
[1720704699877,6.9637,143.61,143.55,30.0]
[1720704700069,6.9637,143.61,143.57,30.0]
[1720704700400,18.79235088,143.64,143.57,30.0]
[1720704700574,45.0,143.63,143.57,30.0]
[1720704700769,1.38685088,143.62,143.57,30.0]
[1720704700974,0.17,143.61,143.57,30.0]
[1720704701176,1.38685088,143.6,143.57,30.0]
[1720704701599,6.9638,143.6,143.57,30.0]
[1720704701790,8.35135088,143.59,143.57,30.0]
[1720704701996,6.9647,143.58,143.57,30.0]
[1720704702300,6.9643,143.59,143.53,6.6299]
[1720704702502,6.9634,143.61,143.54,30.0]
[1720704703079,20.16814125,143.66,143.55,1.39104747]
[1720704703271,46.55685088,143.65,143.55,1.39104747]
[1720704703471,6.9629,143.62,143.57,30.0]
[1720704703677,6.9624,143.63,143.57,30.0]
[1720704703891,8.34875088,143.64,143.57,30.0]
[1720704704195,1.38685088,143.64,143.57,30.0]
[1720704704499,6.9633,143.61,143.57,30.0]
[1720704704694,1.38685088,143.64,143.57,30.0]
[1720704704921,1.38685088,143.65,143.57,30.0]
[1720704705205,1.38685088,143.64,143.57,30.0]
[1720704705400,8.34875088,143.64,143.57,30.0]
[1720704705706,1.38685088,143.65,143.57,47.4124]
[1720704705881,1.38685088,143.65,143.58,0.5611928]
[1720704706082,6.9619,143.64,143.58,0.5611928]
[1720704706317,1.38685088,143.65,143.58,0.5611928]
[1720704706478,1.38685088,143.65,143.58,30.5611928]
[1720704706675,6.9619,143.64,143.58,30.0]
[1720704707005,1.38685088,143.63,143.58,30.0]
[1720704707206,1.38685088,143.65,143.58,30.0]
[1720704707497,6.9623,143.63,143.58,30.0]
[1720704707801,6.9628,143.62,143.58,30.0]
[1720704708013,6.9628,143.62,143.57,15.511]
[1720704708384,58.82550705,143.66,143.58,30.0]
[1720704708385,1.38685088,143.61,143.58,30.0]
[1720704708583,6.9639,143.6,143.58,30.0]
[1720704708982,6.9625,143.63,143.58,30.0]
[1720704709192,0.17,143.64,143.58,30.0]
[1720704709384,6.9642,143.59,143.58,30.0]
[1720704709588,6.9636,143.61,143.58,30.0]
[1720704709898,6.9629,143.62,143.58,30.0]
[1720704710280,0.17,143.64,143.58,30.0]
[1720704710482,6.9621,143.64,143.58,30.0]
[1720704710714,6.9618,143.64,143.58,30.0]
[1720704711600,8.34825088,143.65,143.58,30.0]
[1720704712719,8.34825088,143.65,143.59,21.7156]
[1720704712907,8.34825088,143.65,143.59,51.7156]
[1720704713215,8.34825088,143.65,143.59,36.5105]
[1720704713216,6.963,143.62,143.59,36.5105]
[1720704713394,24.24685088,143.64,143.59,36.5105]
[1720704713723,1.38685088,143.65,143.59,36.5105]
[1720704714383,8.34855088,143.65,143.59,36.5105]
[1720704714788,6.9619,143.64,143.59,36.5105]
[1720704714990,6.9615,143.65,143.59,36.5105]
[1720704715215,43.1192,143.69,143.59,36.5105]
[1720704715216,1.38685088,143.67,143.59,36.5105]
[1720704715503,1.38685088,143.68,143.6,23.1632]
[1720704715819,43.1143,143.73,143.6,23.1632]
[1720704715820,1.38685088,143.71,143.6,45.8597]
[1720704715996,6.9614,143.65,143.6,15.8597]
[1720704716186,1.38685088,143.64,143.59,6.5105]
[1720704716385,8.03135088,143.68,143.56,16.214]
[1720704716595,6.9624,143.63,143.56,16.214]
[1720704716992,6.9619,143.64,143.56,16.214]
[1720704717292,8.34955088,143.63,143.56,16.214]
[1720704718087,1.38685088,143.63,143.56,16.214]
[1720704718394,1.38685088,143.62,143.56,16.214]
[1720704718711,6.9641,143.6,143.56,16.214]
[1720704718907,8.35135088,143.59,143.55,6.4577]
[1720704719120,8.35155088,143.59,143.52,21.676]
[1720704719411,1.38685088,143.59,143.52,21.676]
[1720704719711,1.38685088,143.61,143.52,21.676]
[1720704719932,8.35065088,143.6,143.52,21.676]
[1720704720518,1.38685088,143.6,143.53,1.39137473]
[1720704720810,1.38685088,143.59,143.53,1.39137473]
[1720704721116,0.17,143.62,143.53,1.39137473]
[1720704721414,6.9643,143.59,143.52,21.846]
[1720704721586,1.55685088,143.62,143.53,30.0]
[1720704721993,1.38685088,143.62,143.54,1.39305058]
[1720704722219,1.38685088,143.62,143.53,30.0]
[1720704722387,6.9638,143.6,143.53,30.0]
[1720704722585,1.38685088,143.59,143.54,1.39302748]
[1720704723392,1.38685088,143.6,143.54,1.39302748]
[1720704723710,6.9641,143.6,143.54,1.39302748]
[1720704723904,1.38685088,143.59,143.54,1.39302748]
[1720704724109,1.38685088,143.59,143.52,21.676]
[1720704724302,1.38685088,143.62,143.56,17.4143]
[1720704724500,1.38685088,143.62,143.52,28.6436]
[1720704724691,1.38685088,143.62,143.52,21.676]
[1720704724893,1.38685088,143.62,143.53,0.97216805]
[1720704725109,25.72,143.61,143.52,21.676]
[1720704725412,6.9647,143.58,143.52,21.676]
[1720704725611,8.35225088,143.57,143.52,6.1945]
[1720704725796,6.9646,143.59,143.52,6.1945]
[1720704725995,53.52185088,143.58,143.52,6.1945]
[1720704726323,53.52185088,143.58,143.45,277.47]
[1720704726324,6.967,143.54,143.48,6.159]
[1720704726513,1.38685088,143.53,143.45,28.9349]
[1720704726886,1.38685088,143.53,143.45,21.964]
[1720704727095,1.38685088,143.53,143.46,6.9705]
[1720704727310,1.38685088,143.54,143.47,6.97]
[1720704727518,1.38685088,143.56,143.48,6.9692]
[1720704727702,6.9663,143.55,143.46,6.9701]
[1720704727890,1.38685088,143.54,143.47,30.0]
[1720704728092,6.9658,143.56,143.47,36.9698]
[1720704728301,1.38685088,143.55,143.47,36.9698]
[1720704728491,6.9668,143.54,143.47,30.0]
[1720704728711,8.35315088,143.55,143.47,30.0]
[1720704728909,1.38685088,143.55,143.47,30.0]
[1720704729212,6.9671,143.54,143.47,30.0]
[1720704729615,63.38996367,143.58,143.47,30.0]
[1720704729616,17.4139,143.57,143.47,30.0]
[1720704729828,6.9676,143.52,143.45,21.964]
[1720704730118,6.9674,143.53,143.45,6.5125]
[1720704730287,8.35355088,143.54,143.45,13.4835]
[1720704730489,6.968,143.52,143.45,6.5125]
[1720704730708,1.38685088,143.54,143.45,6.5125]
[1720704730709,1.38685088,143.54,143.45,13.4834]
[1720704730917,1.38685088,143.54,143.46,30.0]
[1720704731620,8.35365088,143.54,143.46,36.9704]
[1720704731822,6.9673,143.53,143.47,0.49994455]
[1720704731992,1.38685088,143.52,143.46,30.0]
[1720704732193,1.38685088,143.51,143.45,6.5125]
[1720704732391,9.97733246,143.55,143.41,32.4878]
[1720704732392,6.9695,143.49,143.41,45.9272]
[1720704732595,6.9695,143.49,143.42,30.0]
[1720704732899,1.38685088,143.48,143.42,30.0]
[1720704733197,6.9702,143.47,143.42,30.0]
[1720704733395,1.38685088,143.49,143.41,21.5225]
[1720704733600,1.38685088,143.48,143.41,21.5225]
[1720704733917,1.38685088,143.52,143.44,6.9714]
[1720704734119,6.9677,143.52,143.44,6.9714]
[1720704734417,6.9689,143.5,143.42,47.4308]
[1720704734611,1.38685088,143.49,143.42,47.4308]
[1720704734815,1.38685088,143.49,143.42,54.4032]
[1720704735030,22.91,143.5,143.42,54.4032]
[1720704735326,29.8786,143.5,143.42,54.4032]
[1720704735619,22.91,143.5,143.42,47.4308]
[1720704735795,29.8772,143.53,143.45,17.4272]
[1720704735995,1.38685088,143.52,143.43,0.17]
[1720704736316,1.38685088,143.52,143.43,0.34]
[1720704736496,46.38685088,143.52,143.42,30.0]
[1720704736805,6.9689,143.5,143.42,30.0]
[1720704737006,8.35575088,143.5,143.42,30.0]
[1720704737205,6.9697,143.48,143.42,30.0]
[1720704737428,1.38685088,143.47,143.42,30.0]
[1720704737915,1.38685088,143.48,143.41,21.5225]
[1720704738451,6.9701,143.47,143.41,21.5225]
[1720704738608,1.38685088,143.46,143.41,21.5225]
[1720704739017,8.35755088,143.46,143.41,21.5225]
[1720704739227,6.9702,143.47,143.41,21.5225]
[1720704739530,8.35745088,143.46,143.41,21.5225]
[1720704739732,22.91,143.47,143.41,21.5225]
[1720704740035,8.35745088,143.46,143.41,21.5225]
[1720704740224,22.91,143.45,143.37,21.7754]
[1720704740399,1.38685088,143.44,143.38,30.0]
[1720704740599,22.91,143.43,143.38,30.0]
[1720704740824,8.35935088,143.42,143.38,30.0]
[1720704741005,1.38685088,143.42,143.38,30.0]
[1720704741326,6.9737,143.4,143.33,21.4065]
[1720704741530,24.29685088,143.39,143.33,21.4065]
[1720704742506,22.91,143.39,143.33,21.4065]
[1720704743309,1.38685088,143.38,143.33,21.4065]
[1720704743503,22.91,143.37,143.33,6.1135]
[1720704744010,22.91,143.37,143.3,23.483]
[1720704744011,22.91,143.37,143.3,29.8047]
[1720704744324,22.91,143.37,143.3,22.8264]
[1720704744526,22.91,143.37,143.3,29.8045]
[1720704744728,6.9736,143.4,143.31,6.9778]
[1720704744912,8.36095088,143.39,143.31,6.9778]
[1720704745306,8.36095088,143.39,143.3,47.2497]
[1720704745523,1.38685088,143.39,143.31,0.17]
[1720704745734,8.35995088,143.41,143.32,54.4202]
[1720704745907,6.9739,143.39,143.32,47.443]
[1720704746106,1.38685088,143.41,143.32,36.9772]
[1720704746804,8.98332831,143.43,143.33,122.36484354]
[1720704747026,6.972,143.43,143.34,99.7572]
[1720704747219,8.35935088,143.42,143.34,92.7809]
[1720704747532,1.38685088,143.44,143.34,99.7569]
[1720704747732,6.9721,143.43,143.34,99.7569]
[1720704748205,6.9721,143.43,143.35,6.9758]
[1720704748406,6.9725,143.42,143.36,30.0]
[1720704748821,6.9721,143.43,143.36,30.0]
[1720704749413,8.35945088,143.42,143.36,30.0]
[1720704749633,1.38685088,143.44,143.36,30.0]
[1720704749829,6.9721,143.43,143.36,30.0]
[1720704750723,6.9725,143.42,143.36,30.0]
[1720704751122,6.973,143.41,143.36,30.0]
[1720704751429,18.81635088,143.44,143.36,30.0]
[1720704751633,6.9743,143.39,143.36,30.0]
[1720704751824,6.9743,143.39,143.31,411.7212]
[1720704752025,6.9743,143.39,143.32,30.0]
[1720704752338,8.36015088,143.41,143.32,36.9772]
[1720704752633,6.9736,143.4,143.32,30.0]
[1720704753210,6.9741,143.39,143.32,30.0]
[1720704754336,8.36025088,143.41,143.32,36.9772]
[1720704754745,6.9735,143.4,143.32,36.9772]
[1720704755035,6.9735,143.4,143.32,36.9773]
[1720704755229,1.38685088,143.41,143.32,30.0]
[1720704755445,6.9743,143.39,143.32,30.0]
[1720704756134,6.9736,143.4,143.32,30.0]
[1720704756326,8.35995088,143.41,143.33,6.9768]
[1720704756535,6.9736,143.4,143.34,30.0]
[1720704756721,1.38685088,143.41,143.34,30.0]
[1720704757039,8.98332831,143.42,143.34,36.976]
[1720704757040,1.38685088,143.42,143.34,36.976]
[1720704757216,1.38685088,143.42,143.35,0.49625391]
[1720704757542,6.9725,143.42,143.35,0.49625391]
[1720704757710,6.9724,143.43,143.34,30.0]
[1720704757917,6.9724,143.43,143.35,0.17]
[1720704758116,1.38685088,143.42,143.35,30.17]
[1720704758430,6.9731,143.41,143.35,30.0]
[1720704758928,6.973,143.42,143.36,1.39373501]
[1720704759111,6.973,143.42,143.36,31.39373501]
[1720704759316,6.9731,143.41,143.36,31.39373501]
[1720704760643,6.9726,143.42,143.36,31.39373501]
[1720704760833,6.9731,143.41,143.36,31.39373501]
[1720704761142,1.38685088,143.44,143.37,21.5106]
[1720704761328,8.35775088,143.46,143.38,1.39354059]
[1720704761531,15.95342831,143.47,143.39,7.1438]
[1720704761730,1.38685088,143.49,143.42,6.9724]
[1720704762031,6.9683,143.51,143.44,15.0703]
[1720704762230,6.9683,143.51,143.45,1.39286075]
[1720704762540,6.9683,143.51,143.46,1.39276365]
[1720704762729,6.9687,143.5,143.46,1.39276365]
[1720704762933,6.9687,143.5,143.44,15.0703]
[1720704763136,17.4194,143.52,143.44,15.0703]
[1720704763438,6.9696,143.48,143.44,15.0703]
[1720704763742,6.9697,143.48,143.44,15.0703]
[1720704763943,17.4194,143.52,143.44,15.0703]
[1720704763944,6.9702,143.47,143.44,15.0703]
[1720704764126,6.9692,143.49,143.44,15.0703]
[1720704764443,6.9687,143.5,143.44,15.0703]
[1720704765147,6.9683,143.51,143.44,15.0703]
[1720704765324,1.38685088,143.5,143.44,15.0703]
[1720704765537,6.9693,143.49,143.44,15.0703]
[1720704766043,1.38685088,143.52,143.44,15.0703]
[1720704766343,1.55685088,143.51,143.44,15.0703]
[1720704766644,22.91,143.5,143.44,15.0703]
[1720704767042,31.26455088,143.52,143.44,15.0703]
[1720704767250,24.29685088,143.52,143.44,15.0703]
[1720704767923,6.9686,143.5,143.44,15.0703]
[1720704768128,6.9683,143.51,143.44,15.0703]
[1720704768529,6.9689,143.5,143.44,15.0703]
[1720704768728,6.9689,143.5,143.45,30.0]
[1720704768928,6.9689,143.5,143.46,0.50784757]
[1720704769144,1.38685088,143.51,143.46,0.50784757]
[1720704769832,6.9686,143.5,143.46,0.50784757]
[1720704770020,6.9686,143.5,143.45,0.50861925]
[1720704770217,8.35495088,143.51,143.46,0.50861919]
[1720704770423,6.9692,143.49,143.46,0.50861919]
[1720704770636,6.9697,143.48,143.44,15.0703]
[1720704771243,1.38685088,143.47,143.41,21.7649]
[1720704771422,31.26675088,143.48,143.42,30.0]
[1720704771747,24.29685088,143.48,143.42,30.0]
[1720704771928,24.29685088,143.48,143.41,46.17]
[1720704772123,24.29685088,143.48,143.41,39.1972]
[1720704772338,1.38685088,143.5,143.43,21.8674]
[1720704772540,24.29685088,143.52,143.44,1.55943603]
[1720704772730,6.9689,143.5,143.44,1.55943603]
[1720704772926,6.9689,143.5,143.44,1.38943603]
[1720704774254,22.91,143.52,143.44,1.38943603]
[1720704774431,6.9681,143.51,143.44,1.38943603]
[1720704775050,6.9687,143.5,143.44,1.38943603]
[1720704775352,8.35515088,143.51,143.44,1.38943603]
[1720704775531,6.9696,143.48,143.44,1.38943603]
[1720704775733,22.91,143.5,143.44,1.38943603]
[1720704776048,1.38685088,143.49,143.44,1.38943603]
[1720704776247,8.35625088,143.49,143.44,1.38943603]
[1720704776645,29.8788,143.5,143.44,1.38943603]
[1720704777148,1.38685088,143.49,143.45,30.0]
[1720704777462,22.91,143.48,143.45,30.0]
[1720704777627,1.38685088,143.47,143.45,30.0]
[1720704777948,8.35705088,143.47,143.45,30.0]
[1720704778247,8.35705088,143.47,143.44,30.0]
[1720704778449,1.38685088,143.47,143.44,30.0]
[1720704778653,8.35705088,143.47,143.44,30.0]
[1720704778959,8.35705088,143.47,143.4,16.2772]
[1720704779255,8.35705088,143.47,143.41,30.0]
[1720704780051,6.9706,143.46,143.41,30.0]
[1720704780252,31.26745088,143.46,143.41,30.0]
[1720704780443,1.38685088,143.45,143.4,16.80587703]
[1720704780761,22.91,143.43,143.39,6.2172]
[1720704780944,1.38685088,143.42,143.36,16.5279]
[1720704781453,8.35945088,143.42,143.36,16.5279]
[1720704782041,22.91,143.43,143.36,23.5032]
[1720704782261,1.38685088,143.46,143.38,30.0]
[1720704782478,1.38685088,143.45,143.38,30.0]
[1720704782629,8.35815088,143.45,143.38,30.0]
[1720704782960,8.35755088,143.46,143.38,36.9744]
[1720704783131,8.35795088,143.45,143.38,30.0]
[1720704783332,6.9716,143.44,143.38,30.0]
[1720704783561,1.38685088,143.45,143.38,30.0]
[1720704783760,31.26795088,143.45,143.38,30.0]
[1720704783960,6.9715,143.44,143.38,30.0]
[1720704784160,6.972,143.43,143.38,30.0]
[1720704784355,8.35945088,143.42,143.38,30.0]
[1720704784670,6.9731,143.41,143.38,30.0]
[1720704785263,31.26945088,143.42,143.38,30.0]
[1720704785645,6.9735,143.4,143.36,17.92262437]
[1720704785846,24.29685088,143.42,143.36,17.92262437]
[1720704786263,24.29685088,143.42,143.36,16.5279]
[1720704786482,31.26945088,143.42,143.36,16.5279]
[1720704786848,8.98219167,143.45,143.36,16.5279]
[1720704787056,27.08158043,143.47,143.38,30.0]
[1720704787370,24.29685088,143.47,143.38,30.0]
[1720704787665,22.91,143.45,143.38,30.0]
[1720704787967,6.9734,143.41,143.36,16.5279]
[1720704788176,1.38685088,143.42,143.36,16.5279]
[1720704788356,6.9733,143.41,143.36,16.5279]
[1720704788555,6.9731,143.41,143.36,16.5279]
[1720704788760,6.9732,143.41,143.36,16.5279]
[1720704788973,1.38685088,143.42,143.36,16.5279]
[1720704789362,6.9743,143.39,143.35,6.0381]
[1720704789765,29.8836,143.4,143.35,6.0381]
[1720704790488,1.38685088,143.39,143.35,6.0381]
[1720704790653,1.38685088,143.39,143.33,15.1529]
[1720704790980,6.9748,143.38,143.33,15.1529]
[1720704791178,1.38685088,143.37,143.3,6.2277]
[1720704791358,29.8868,143.34,143.31,30.0]
[1720704791554,1.38685088,143.33,143.29,0.8610257]
[1720704791865,24.29685088,143.32,143.29,0.8610257]
[1720704792256,6.9783,143.3,143.29,0.8610257]
[1720704792671,6.9779,143.31,143.29,0.8610257]
[1720704793079,31.27435088,143.32,143.29,0.8610257]
[1720704793249,22.91,143.32,143.29,0.8610257]
[1720704793753,24.29685088,143.32,143.29,0.8610257]
[1720704793969,6.978,143.31,143.29,0.8610257]
[1720704794178,6.9783,143.3,143.29,0.8610257]
[1720704794555,8.36515088,143.3,143.29,0.8610257]
[1720704794755,6.9783,143.3,143.29,0.8610257]
[1720704795272,29.8883,143.3,143.29,0.8610257]
[1720704798166,6.9789,143.29,143.23,6.1891]
[1720704798480,8.36575088,143.29,143.23,6.1891]
[1720704800079,6.9793,143.28,143.23,6.1891]
[1720704800383,8.36675088,143.27,143.23,6.1891]
[1720704800781,1.38685088,143.26,143.23,6.1891]
[1720704800987,24.29685088,143.26,143.2,15.4269]
[1720704801162,6.9824,143.22,143.19,6.2094]
[1720704801360,22.91,143.23,143.2,1.39543771]
[1720704801681,22.91,143.23,143.19,6.2094]
[1720704802260,6.9803,143.26,143.2,0.83901963]
[1720704802466,24.29685088,143.26,143.19,6.2094]
[1720704802666,6.9814,143.24,143.19,6.2094]
[1720704802870,1.38685088,143.23,143.19,6.2094]
[1720704803164,1.38685088,143.25,143.19,6.2094]
[1720704803791,1.38685088,143.29,143.24,6.981]
[1720704803994,8.36485088,143.31,143.23,17.4536]
[1720704804170,1.38685088,143.31,143.23,17.4536]
[1720704804374,1.38685088,143.31,143.24,6.9812]
[1720704804591,22.91,143.32,143.23,17.4536]
[1720704804888,22.91,143.32,143.24,6.84311662]
[1720704805088,22.91,143.32,143.24,36.84311662]
[1720704805281,29.8875,143.32,143.24,43.82401662]
[1720704805581,8.98219167,143.34,143.25,63.84721586]
[1720704805770,6.9745,143.38,143.26,115.9176]
[1720704805971,22.91,143.38,143.29,6.0783]
[1720704806187,24.29685088,143.41,143.32,17.4433]
[1720704806365,24.29685088,143.41,143.33,1.39479452]
[1720704806561,6.9737,143.4,143.33,1.39479452]
[1720704806765,1.38685088,143.4,143.33,1.39479452]
[1720704806989,1.38685088,143.4,143.33,8.37149452]
[1720704807195,24.29685088,143.41,143.34,6.9763]
[1720704807382,24.29685088,143.41,143.35,1.39478816]
[1720704807692,1.38685088,143.43,143.37,6.9749]
[1720704807991,8.35795088,143.45,143.38,1.39445923]
[1720704808288,6.972,143.44,143.37,30.0]
[1720704808599,8.35795088,143.45,143.37,30.0]
[1720704809096,1.38685088,143.45,143.37,30.0]
[1720704809388,8.35805088,143.45,143.37,30.0]
[1720704809605,1.38685088,143.45,143.37,36.9745]
[1720704809769,1.38685088,143.45,143.38,6.5006]
[1720704810093,1.38685088,143.49,143.39,1.39002787]
[1720704810300,24.29685088,143.48,143.39,1.39002787]
[1720704810465,6.9705,143.47,143.39,1.39002787]
[1720704810661,8.35655088,143.48,143.39,8.36372787]
[1720704810886,8.35655088,143.48,143.39,38.36372787]
[1720704811188,1.38685088,143.49,143.39,31.39002787]
[1720704811392,1.38685088,143.51,143.42,17.4307]
[1720704811573,8.35535088,143.51,143.43,1.55964021]
[1720704811773,1.38685088,143.53,143.43,1.55964021]
[1720704811972,8.35445088,143.53,143.44,7.1413]
[1720704812186,1.38685088,143.53,143.46,6.9705]
[1720704812467,1.38685088,143.55,143.48,6.3528]
[1720704812685,1.38685088,143.55,143.49,1.38997062]
[1720704812891,1.38685088,143.57,143.49,1.38997062]
[1720704813196,1.38685088,143.58,143.5,6.9682]
[1720704813373,8.35155088,143.58,143.51,1.3897769]
[1720704813566,8.35155088,143.58,143.52,1.38968006]
[1720704813567,1.38685088,143.57,143.52,1.38968006]
[1720704813897,1.38685088,143.59,143.52,1.38968006]
[1720704814474,1.38685088,143.59,143.53,1.38958323]
[1720704814778,1.38685088,143.59,143.51,6.9679]
[1720704814972,8.35115088,143.59,143.52,31.38929276]
[1720704815284,6.9638,143.6,143.52,31.38929276]
[1720704815485,8.35035088,143.61,143.52,38.35689276]
[1720704815668,8.35035088,143.61,143.52,38.35679276]
[1720704815869,6.9629,143.62,143.53,6.9671]
[1720704816077,8.34975088,143.62,143.54,1.38909918]
[1720704816385,6.9633,143.61,143.55,1.38900241]
[1720704816599,1.38685088,143.62,143.55,1.38900241]
[1720704816600,8.34965088,143.62,143.55,1.38900241]
[1720704816765,6.9633,143.61,143.55,1.38900241]
[1720704817177,1.38685088,143.63,143.56,1.38890564]
[1720704817380,6.9643,143.59,143.53,30.0]
[1720704817602,0.17,143.62,143.53,30.0]
[1720704817772,6.9636,143.61,143.53,30.0]
[1720704817968,9.85790803,143.64,143.53,30.0]
[1720704818193,70.95,143.63,143.53,30.0]
[1720704818500,6.9657,143.56,143.53,30.0]
[1720704818690,72.93914494,143.63,143.53,30.0]
[1720704818691,17.4104,143.6,143.53,30.0]
[1720704818990,45.17,143.59,143.48,6.3528]
[1720704819197,18.79945088,143.58,143.49,30.0]
[1720704819376,46.55685088,143.57,143.49,30.0]
[1720704819572,6.9657,143.56,143.49,30.0]
[1720704819791,1.38685088,143.55,143.49,30.0]
[1720704820188,1.38685088,143.56,143.49,30.0]
[1720704820369,1.38685088,143.56,143.48,13.3223]
[1720704820570,6.9648,143.58,143.49,7.139]
[1720704820769,1.38685088,143.57,143.49,7.139]
[1720704821002,8.35215088,143.57,143.49,0.17]
[1720704821199,8.35215088,143.57,143.49,0.34]
[1720704821491,8.52075088,143.6,143.51,6.9679]
[1720704821682,8.35075088,143.6,143.52,6.9675]
[1720704821883,1.38685088,143.6,143.52,6.9675]
[1720704822388,1.38685088,143.6,143.53,30.0]
[1720704822906,1.38685088,143.63,143.53,30.0]
[1720704823195,1.38685088,143.63,143.53,36.967]
[1720704823396,1.38685088,143.63,143.53,30.0]